[Event "*** SCC Grand Prix: Titled Tuesday Blitz"]
[Site "Chess.com"]
[Date "2020.06.02"]
[Round "4"]
[White "rasmussvane"]
[Black "Leonid_Starozhilov"]
[Result "1-0"]
[WhiteElo "2895"]
[BlackElo "2720"]
[TimeControl "180+1"]
[EndTime "10:38:46 PDT"]
[Termination "rasmussvane won by resignation"]

1. Nf3 {[%clk 0:03:00.9]} 1... Nf6 {[%clk 0:03:00.1]} 2. g3 {[%clk 0:03:00.1]}
2... g6 {[%clk 0:03:00.5]} 3. Bg2 {[%clk 0:03:00]} 3... Bg7 {[%clk 0:03:01.4]}
4. O-O {[%clk 0:03:00.6]} 4... O-O {[%clk 0:03:02.3]} 5. d4 {[%clk 0:03:01.2]}
5... d6 {[%clk 0:03:02.9]} 6. Re1 {[%clk 0:03:01.2]} 6... Bg4 {[%clk 0:02:57.3]}
7. e4 {[%clk 0:02:56.7]} 7... Nc6 {[%clk 0:02:52.9]} 8. h3 {[%clk 0:02:48.5]}
8... Bxf3 {[%clk 0:02:52.6]} 9. Bxf3 {[%clk 0:02:49.4]} 9... e5 {[%clk
0:02:52.1]} 10. dxe5 {[%clk 0:02:34.1]} 10... dxe5 {[%clk 0:02:48.1]} 11. c3
{[%clk 0:02:33.7]} 11... Qxd1 {[%clk 0:02:42.8]} 12. Rxd1 {[%clk 0:02:34.6]}
12... Rfd8 {[%clk 0:02:43.3]} 13. Rxd8+ {[%clk 0:02:33.9]} 13... Rxd8 {[%clk
0:02:44.2]} 14. Be3 {[%clk 0:02:34.5]} 14... Nd7 {[%clk 0:02:37.7]} 15. Nd2
{[%clk 0:02:29.8]} 15... Bf8 {[%clk 0:02:33.8]} 16. b4 {[%clk 0:02:05]} 16... a6
{[%clk 0:02:10.9]} 17. a4 {[%clk 0:02:01.6]} 17... h5 {[%clk 0:02:08.1]} 18. Nb3
{[%clk 0:01:48.1]} 18... Kh7 {[%clk 0:01:47.1]} 19. Bg5 {[%clk 0:01:48]} 19...
f6 {[%clk 0:01:44]} 20. Bd2 {[%clk 0:01:48.4]} 20... Bh6 {[%clk 0:01:43.4]} 21.
Be1 {[%clk 0:01:47.6]} 21... Nb6 {[%clk 0:01:03]} 22. Be2 {[%clk 0:01:39]} 22...
Kg7 {[%clk 0:00:55.3]} 23. Nc5 {[%clk 0:01:38.3]} 23... Rb8 {[%clk 0:00:37.5]}
24. a5 {[%clk 0:01:36.7]} 24... Nc8 {[%clk 0:00:35.2]} 25. Ne6+ {[%clk
0:01:36.6]} 25... Kh7 {[%clk 0:00:35.6]} 26. Nxc7 {[%clk 0:01:37.5]} 26... Nd6
{[%clk 0:00:36.1]} 27. Nd5 {[%clk 0:01:32.6]} 27... Nxe4 {[%clk 0:00:32.4]} 28.
Bf3 {[%clk 0:01:29.5]} 28... Nd2 {[%clk 0:00:23.6]} 29. Bxd2 {[%clk 0:01:18.6]}
29... Bxd2 {[%clk 0:00:24.5]} 30. Rd1 {[%clk 0:01:19.1]} 30... Bh6 {[%clk
0:00:24]} 31. Nxf6+ {[%clk 0:01:17.9]} 31... Kg7 {[%clk 0:00:23.7]} 32. Ne4
{[%clk 0:01:18.5]} 32... h4 {[%clk 0:00:20]} 33. gxh4 {[%clk 0:01:12.4]} 33...
Bf4 {[%clk 0:00:18]} 34. Nc5 {[%clk 0:01:12.6]} 34... b6 {[%clk 0:00:04.9]} 35.
Ne6+ {[%clk 0:01:09]} 35... Kf6 {[%clk 0:00:04.7]} 36. Nxf4 {[%clk 0:01:09.6]}
1-0

[Event "*** SCC Grand Prix: Titled Tuesday Blitz"]
[Site "Chess.com"]
[Date "2020.06.02"]
[Round "4"]
[White "BakaPG"]
[Black "ChainsOfFantasia"]
[Result "1-0"]
[WhiteElo "2687"]
[BlackElo "2484"]
[TimeControl "180+1"]
[EndTime "10:38:47 PDT"]
[Termination "BakaPG won by resignation"]

1. e4 {[%clk 0:03:00.9]} 1... e6 {[%clk 0:02:58.9]} 2. d4 {[%clk 0:02:59.9]}
2... d5 {[%clk 0:02:59.8]} 3. e5 {[%clk 0:03:00.1]} 3... c5 {[%clk 0:02:59.5]}
4. c3 {[%clk 0:03:00.7]} 4... Nc6 {[%clk 0:03:00]} 5. Nf3 {[%clk 0:03:00.8]}
5... Qb6 {[%clk 0:03:00.5]} 6. a3 {[%clk 0:02:58.9]} 6... c4 {[%clk 0:02:59.8]}
7. Nbd2 {[%clk 0:02:57.5]} 7... f6 {[%clk 0:03:00.3]} 8. Be2 {[%clk 0:02:54.9]}
8... fxe5 {[%clk 0:03:00.2]} 9. Nxe5 {[%clk 0:02:53.7]} 9... Nxe5 {[%clk
0:03:00.3]} 10. dxe5 {[%clk 0:02:53.7]} 10... Bc5 {[%clk 0:03:00.8]} 11. O-O
{[%clk 0:02:53.3]} 11... Ne7 {[%clk 0:03:00.7]} 12. b4 {[%clk 0:02:49.9]} 12...
cxb3 {[%clk 0:03:01]} 13. Nxb3 {[%clk 0:02:49.8]} 13... O-O {[%clk 0:03:01.3]}
14. Nxc5 {[%clk 0:02:45]} 14... Qxc5 {[%clk 0:03:02.2]} 15. Be3 {[%clk
0:02:42.5]} 15... Qc7 {[%clk 0:03:01.7]} 16. f4 {[%clk 0:02:40.1]} 16... Rf7
{[%clk 0:03:00.8]} 17. Bd4 {[%clk 0:02:37.7]} 17... Bd7 {[%clk 0:02:54.7]} 18.
Bd3 {[%clk 0:02:34.2]} 18... g6 {[%clk 0:02:54.1]} 19. Qg4 {[%clk 0:02:30]}
19... Nf5 {[%clk 0:02:50.8]} 20. Bxf5 {[%clk 0:02:24.5]} 20... Rxf5 {[%clk
0:02:50.1]} 21. Rf3 {[%clk 0:02:10.5]} 21... Bb5 {[%clk 0:02:34.7]} 22. Re1
{[%clk 0:02:08.5]} 22... Qe7 {[%clk 0:02:28.3]} 23. Qg3 {[%clk 0:01:58.4]} 23...
Qxa3 {[%clk 0:02:11.9]} 24. Qf2 {[%clk 0:01:57.6]} 24... Qe7 {[%clk 0:01:52.7]}
25. g4 {[%clk 0:01:53.6]} 25... Rf7 {[%clk 0:01:51.5]} 26. f5 {[%clk 0:01:53.6]}
26... gxf5 {[%clk 0:01:41.6]} 27. gxf5 {[%clk 0:01:53.3]} 27... Kh8 {[%clk
0:01:00.3]} 28. f6 {[%clk 0:01:43.1]} 28... Rg8+ {[%clk 0:00:59.3]} 29. Kh1
{[%clk 0:01:35.3]} 29... Qe8 {[%clk 0:00:57.9]} 30. h3 {[%clk 0:01:31.9]} 30...
a5 {[%clk 0:00:52]} 31. Kh2 {[%clk 0:01:31]} 31... a4 {[%clk 0:00:48.4]} 32. Bc5
{[%clk 0:01:23.3]} 32... Rg6 {[%clk 0:00:40.9]} 33. Rg1 {[%clk 0:01:20.5]} 33...
Rxg1 {[%clk 0:00:39.9]} 34. Qxg1 {[%clk 0:01:20]} 34... b6 {[%clk 0:00:33.6]}
35. Bd6 {[%clk 0:01:07.6]} 35... Ra7 {[%clk 0:00:29.9]} 36. Qxb6 {[%clk
0:00:57.4]} 36... Qa8 {[%clk 0:00:22.7]} 37. f7 {[%clk 0:00:50.6]} 1-0

[Event "*** SCC Grand Prix: Titled Tuesday Blitz"]
[Site "Chess.com"]
[Date "2020.06.02"]
[Round "4"]
[White "elohunter1999"]
[Black "Spartakus1975"]
[Result "1-0"]
[WhiteElo "2515"]
[BlackElo "2689"]
[TimeControl "180+1"]
[EndTime "10:38:51 PDT"]
[Termination "elohunter1999 won on time"]

1. e4 {[%clk 0:03:00.9]} 1... e6 {[%clk 0:02:56.5]} 2. d4 {[%clk 0:03:00.6]}
2... d5 {[%clk 0:02:52.2]} 3. Nc3 {[%clk 0:03:00.7]} 3... Nf6 {[%clk 0:02:45.3]}
4. e5 {[%clk 0:03:00.7]} 4... Nfd7 {[%clk 0:02:43.6]} 5. f4 {[%clk 0:03:01.3]}
5... c5 {[%clk 0:02:39.8]} 6. Nf3 {[%clk 0:03:01.8]} 6... Nc6 {[%clk 0:02:30.8]}
7. Be3 {[%clk 0:03:01.8]} 7... Be7 {[%clk 0:02:18.5]} 8. Qd2 {[%clk 0:03:01.3]}
8... O-O {[%clk 0:02:03.2]} 9. dxc5 {[%clk 0:03:00.5]} 9... Nxc5 {[%clk
0:01:57.2]} 10. a3 {[%clk 0:02:52.6]} 10... a6 {[%clk 0:01:37]} 11. Qf2 {[%clk
0:02:41.8]} 11... b6 {[%clk 0:01:26.8]} 12. b4 {[%clk 0:02:41]} 12... Nd7 {[%clk
0:01:12.6]} 13. Bd3 {[%clk 0:02:38.2]} 13... a5 {[%clk 0:00:50.2]} 14. b5 {[%clk
0:02:35.6]} 14... Na7 {[%clk 0:00:50]} 15. O-O {[%clk 0:02:22.2]} 15... Nc5
{[%clk 0:00:37.8]} 16. Nd4 {[%clk 0:01:58.9]} 16... Bd7 {[%clk 0:00:34.2]} 17.
a4 {[%clk 0:01:54.3]} 17... Rc8 {[%clk 0:00:31.2]} 18. Nce2 {[%clk 0:01:51.8]}
18... Nxd3 {[%clk 0:00:26.6]} 19. cxd3 {[%clk 0:01:52.7]} 19... f6 {[%clk
0:00:22.7]} 20. Qg3 {[%clk 0:01:46.7]} 20... f5 {[%clk 0:00:12.8]} 21. Kh1
{[%clk 0:01:37.2]} 21... Qe8 {[%clk 0:00:11.2]} 22. Rac1 {[%clk 0:01:33.6]}
22... Qh5 {[%clk 0:00:10.7]} 23. Qf2 {[%clk 0:01:32.3]} 23... Ba3 {[%clk
0:00:08.9]} 24. Ra1 {[%clk 0:01:30.2]} 24... Bc5 {[%clk 0:00:08.1]} 25. Nf3
{[%clk 0:01:25.6]} 25... Rc7 {[%clk 0:00:06.2]} 26. Rac1 {[%clk 0:01:16.9]}
26... Rfc8 {[%clk 0:00:05.2]} 27. Bxc5 {[%clk 0:01:16.7]} 27... Rxc5 {[%clk
0:00:05.2]} 28. Rxc5 {[%clk 0:01:16.6]} 28... Rxc5 {[%clk 0:00:05.3]} 29. Rc1
{[%clk 0:01:17.2]} 29... Rxc1+ {[%clk 0:00:04.2]} 30. Nxc1 {[%clk 0:01:18.1]}
30... Qg4 {[%clk 0:00:03.8]} 31. Ne2 {[%clk 0:01:17.5]} 31... Nc8 {[%clk
0:00:03.3]} 32. Qd4 {[%clk 0:01:15.2]} 32... Qh5 {[%clk 0:00:02]} 33. Qc3 {[%clk
0:01:14.4]} 33... Qe8 {[%clk 0:00:01.6]} 34. Qc7 {[%clk 0:01:13.7]} 34... Qe7
{[%clk 0:00:01.9]} 35. Ned4 {[%clk 0:01:07.4]} 1-0

[Event "*** SCC Grand Prix: Titled Tuesday Blitz"]
[Site "Chess.com"]
[Date "2020.06.02"]
[Round "4"]
[White "Denis_Palkovich"]
[Black "Twiceblessed"]
[Result "0-1"]
[WhiteElo "2318"]
[BlackElo "2515"]
[TimeControl "180+1"]
[EndTime "10:38:51 PDT"]
[Termination "Twiceblessed won on time"]

1. d4 {[%clk 0:03:00.9]} 1... Nf6 {[%clk 0:03:00.2]} 2. Bf4 {[%clk 0:02:59.7]}
2... e6 {[%clk 0:03:00.4]} 3. e3 {[%clk 0:02:59.1]} 3... d5 {[%clk 0:03:00.8]}
4. Nd2 {[%clk 0:02:57.7]} 4... Bd6 {[%clk 0:03:01.1]} 5. Bd3 {[%clk 0:02:54.7]}
5... c5 {[%clk 0:03:01]} 6. c3 {[%clk 0:02:53.7]} 6... Qc7 {[%clk 0:02:59.4]} 7.
Bxd6 {[%clk 0:02:51.2]} 7... Qxd6 {[%clk 0:03:00.3]} 8. f4 {[%clk 0:02:51.6]}
8... Nc6 {[%clk 0:02:55.2]} 9. Ngf3 {[%clk 0:02:51.5]} 9... cxd4 {[%clk
0:02:54]} 10. exd4 {[%clk 0:02:38.2]} 10... Qxf4 {[%clk 0:02:52.4]} 11. Qe2
{[%clk 0:02:36.3]} 11... Bd7 {[%clk 0:02:42.5]} 12. O-O {[%clk 0:02:35.7]} 12...
Qc7 {[%clk 0:02:35.5]} 13. Ne5 {[%clk 0:02:35.6]} 13... Rf8 {[%clk 0:02:07]} 14.
a4 {[%clk 0:02:08.9]} 14... O-O-O {[%clk 0:02:04.8]} 15. a5 {[%clk 0:02:05.7]}
15... Kb8 {[%clk 0:01:59.3]} 16. b4 {[%clk 0:01:54.8]} 16... Bc8 {[%clk
0:01:54.4]} 17. Nb3 {[%clk 0:01:48.6]} 17... Nxe5 {[%clk 0:01:46.7]} 18. dxe5
{[%clk 0:01:48.7]} 18... Nd7 {[%clk 0:01:47.2]} 19. Nd4 {[%clk 0:01:30.6]} 19...
Qxc3 {[%clk 0:01:40.4]} 20. Nb5 {[%clk 0:01:27.8]} 20... Qxe5 {[%clk 0:01:36.6]}
21. Qf2 {[%clk 0:01:26.9]} 21... d4 {[%clk 0:01:36.8]} 22. Nxd4 {[%clk 0:01:10]}
22... Nc5 {[%clk 0:01:35.4]} 23. Nf3 {[%clk 0:00:31.3]} 23... Nxd3 {[%clk
0:01:28.7]} 24. Nxe5 {[%clk 0:00:26.8]} 24... Nxf2 {[%clk 0:01:28.5]} 25. Rxf2
{[%clk 0:00:27.7]} 25... f6 {[%clk 0:01:28.1]} 26. Nc4 {[%clk 0:00:26.7]} 26...
Rd4 {[%clk 0:01:27.9]} 27. Ne3 {[%clk 0:00:20.3]} 27... Rxb4 {[%clk 0:01:25.9]}
28. Nc2 {[%clk 0:00:14.9]} 28... Rb2 {[%clk 0:01:24.6]} 29. Rc1 {[%clk
0:00:11.3]} 29... Bd7 {[%clk 0:01:21.1]} 30. Nd4 {[%clk 0:00:10.6]} 30... Rxf2
{[%clk 0:01:19.5]} 31. Kxf2 {[%clk 0:00:11.5]} 31... Rc8 {[%clk 0:01:19.6]} 32.
Re1 {[%clk 0:00:09.4]} 32... e5 {[%clk 0:01:18.9]} 33. Nb3 {[%clk 0:00:07.6]}
33... Rc2+ {[%clk 0:01:16.1]} 34. Re2 {[%clk 0:00:02]} 34... Rxe2+ {[%clk
0:01:15.4]} 35. Kxe2 {[%clk 0:00:02.9]} 35... Bc6 {[%clk 0:01:15.7]} 36. g3
{[%clk 0:00:02.4]} 36... Kc7 {[%clk 0:01:15]} 37. Ke3 {[%clk 0:00:02.4]} 37...
Kd6 {[%clk 0:01:14.4]} 38. Nd2 {[%clk 0:00:02.1]} 38... Kc5 {[%clk 0:01:13.9]}
0-1

[Event "*** SCC Grand Prix: Titled Tuesday Blitz"]
[Site "Chess.com"]
[Date "2020.06.02"]
[Round "4"]
[White "ditkin25"]
[Black "Khazieva_Elza"]
[Result "0-1"]
[WhiteElo "2429"]
[BlackElo "2269"]
[TimeControl "180+1"]
[EndTime "10:38:51 PDT"]
[Termination "Khazieva_Elza won by checkmate"]

1. e4 {[%clk 0:03:00.9]} 1... c5 {[%clk 0:02:55.4]} 2. Nf3 {[%clk 0:02:59.6]}
2... d6 {[%clk 0:02:55.5]} 3. d4 {[%clk 0:02:59]} 3... cxd4 {[%clk 0:02:56.4]}
4. Nxd4 {[%clk 0:02:59.8]} 4... Nf6 {[%clk 0:02:56.3]} 5. f3 {[%clk 0:03:00.3]}
5... e5 {[%clk 0:02:49.3]} 6. Nb3 {[%clk 0:03:00.3]} 6... Nc6 {[%clk 0:02:49.2]}
7. c4 {[%clk 0:02:59.3]} 7... Be7 {[%clk 0:02:42.7]} 8. Be3 {[%clk 0:02:55.8]}
8... O-O {[%clk 0:02:41.5]} 9. Nc3 {[%clk 0:02:56.1]} 9... Be6 {[%clk
0:02:41.7]} 10. Be2 {[%clk 0:02:56]} 10... a6 {[%clk 0:02:41]} 11. O-O {[%clk
0:02:55.5]} 11... Rc8 {[%clk 0:02:23.8]} 12. Rc1 {[%clk 0:02:54.7]} 12... Nd7
{[%clk 0:02:10.2]} 13. Qd2 {[%clk 0:02:47.5]} 13... f5 {[%clk 0:02:07.1]} 14.
exf5 {[%clk 0:02:41.3]} 14... Bxf5 {[%clk 0:02:07]} 15. Nd5 {[%clk 0:02:22.9]}
15... Bf6 {[%clk 0:01:52.6]} 16. Bd3 {[%clk 0:02:09.9]} 16... Bxd3 {[%clk
0:01:39.1]} 17. Qxd3 {[%clk 0:02:10.8]} 17... Bg5 {[%clk 0:01:38.7]} 18. Rcd1
{[%clk 0:01:46.4]} 18... Bxe3+ {[%clk 0:01:32.4]} 19. Qxe3 {[%clk 0:01:45]}
19... Qh4 {[%clk 0:01:23.9]} 20. Nd2 {[%clk 0:01:30.8]} 20... Nd4 {[%clk
0:01:03.4]} 21. b3 {[%clk 0:01:15.6]} 21... Kh8 {[%clk 0:00:59.3]} 22. Ne4
{[%clk 0:01:12]} 22... Rc6 {[%clk 0:00:49.7]} 23. f4 {[%clk 0:01:03.4]} 23...
Nf5 {[%clk 0:00:43.2]} 24. Qf2 {[%clk 0:00:59.7]} 24... Qh6 {[%clk 0:00:24.7]}
25. fxe5 {[%clk 0:00:51.8]} 25... Nxe5 {[%clk 0:00:24.2]} 26. Ne7 {[%clk
0:00:43.7]} 26... Ng4 {[%clk 0:00:18.3]} 27. Nxf5 {[%clk 0:00:39]} 27... Qxh2#
{[%clk 0:00:09.2]} 0-1

[Event "*** SCC Grand Prix: Titled Tuesday Blitz"]
[Site "Chess.com"]
[Date "2020.06.02"]
[Round "4"]
[White "praveenb2002"]
[Black "Oglob71"]
[Result "1-0"]
[WhiteElo "2736"]
[BlackElo "2514"]
[TimeControl "180+1"]
[EndTime "10:38:52 PDT"]
[Termination "praveenb2002 won by resignation"]

1. e4 {[%clk 0:03:00.9]} 1... c5 {[%clk 0:02:58.5]} 2. Nf3 {[%clk 0:03:01.1]}
2... d6 {[%clk 0:02:58.2]} 3. d4 {[%clk 0:03:01.8]} 3... cxd4 {[%clk 0:02:58.5]}
4. Nxd4 {[%clk 0:03:02.2]} 4... Nf6 {[%clk 0:02:59.1]} 5. Nc3 {[%clk 0:03:02.1]}
5... Nc6 {[%clk 0:02:59.6]} 6. Bg5 {[%clk 0:03:01.9]} 6... Bd7 {[%clk
0:02:59.6]} 7. Qd2 {[%clk 0:02:57.3]} 7... Rc8 {[%clk 0:02:59.1]} 8. O-O-O
{[%clk 0:02:57.7]} 8... Nxd4 {[%clk 0:02:58.8]} 9. Qxd4 {[%clk 0:02:57.8]} 9...
Qa5 {[%clk 0:02:59.5]} 10. f4 {[%clk 0:02:56.6]} 10... Rxc3 {[%clk 0:02:58.2]}
11. bxc3 {[%clk 0:02:52.7]} 11... e5 {[%clk 0:02:58.3]} 12. Qb4 {[%clk
0:02:53.3]} 12... Qxb4 {[%clk 0:02:57.9]} 13. cxb4 {[%clk 0:02:53.3]} 13... Nxe4
{[%clk 0:02:58.6]} 14. Bh4 {[%clk 0:02:53.1]} 14... g5 {[%clk 0:02:56.5]} 15.
fxg5 {[%clk 0:02:53.1]} 15... Be7 {[%clk 0:02:56.6]} 16. Bc4 {[%clk 0:02:47.8]}
16... Nxg5 {[%clk 0:02:50.6]} 17. Kb2 {[%clk 0:02:30.8]} 17... h6 {[%clk
0:02:47.6]} 18. Bd5 {[%clk 0:02:28.4]} 18... b6 {[%clk 0:02:39.4]} 19. Rd3
{[%clk 0:02:19.2]} 19... Ne6 {[%clk 0:02:34]} 20. Bxe7 {[%clk 0:02:16.7]} 20...
Kxe7 {[%clk 0:02:34.4]} 21. Ra3 {[%clk 0:02:12.7]} 21... Nc7 {[%clk 0:02:22.3]}
22. Rd1 {[%clk 0:01:49.4]} 22... a6 {[%clk 0:02:19.5]} 23. Bc4 {[%clk
0:01:43.4]} 23... b5 {[%clk 0:02:16.1]} 24. Bxf7 {[%clk 0:01:13]} 24... Kxf7
{[%clk 0:02:12.3]} 25. Rxd6 {[%clk 0:01:13.5]} 25... Ke7 {[%clk 0:02:09]} 26.
Rb6 {[%clk 0:01:09.1]} 26... Rg8 {[%clk 0:01:59.1]} 27. Rxh6 {[%clk 0:00:52.3]}
27... Bf5 {[%clk 0:01:48.8]} 28. Rc3 {[%clk 0:00:37.5]} 28... Nd5 {[%clk
0:01:44.3]} 29. Rc5 {[%clk 0:00:37.4]} 29... Be6 {[%clk 0:01:33.6]} 30. Rc6
{[%clk 0:00:29.3]} 30... Bd7 {[%clk 0:01:02.6]} 31. Rh7+ {[%clk 0:00:26.6]}
31... Kd8 {[%clk 0:00:59.9]} 32. Rd6 {[%clk 0:00:26]} 32... Nxb4 {[%clk
0:00:45.5]} 33. Rdxd7+ {[%clk 0:00:24.7]} 33... Kc8 {[%clk 0:00:46.1]} 34. Ra7
{[%clk 0:00:22.2]} 34... Kb8 {[%clk 0:00:46.2]} 35. Rhb7+ {[%clk 0:00:22.3]}
35... Kc8 {[%clk 0:00:46.3]} 36. Ra8+ {[%clk 0:00:22.7]} 1-0

[Event "*** SCC Grand Prix: Titled Tuesday Blitz"]
[Site "Chess.com"]
[Date "2020.06.02"]
[Round "4"]
[White "stanyga"]
[Black "Love_craft"]
[Result "1-0"]
[WhiteElo "2647"]
[BlackElo "2454"]
[TimeControl "180+1"]
[EndTime "10:38:52 PDT"]
[Termination "stanyga won on time"]

1. d4 {[%clk 0:02:59.4]} 1... Nf6 {[%clk 0:02:59.5]} 2. c4 {[%clk 0:02:58.7]}
2... g6 {[%clk 0:02:58.6]} 3. g3 {[%clk 0:02:58.3]} 3... Bg7 {[%clk 0:02:58.9]}
4. Bg2 {[%clk 0:02:58.2]} 4... O-O {[%clk 0:02:59.3]} 5. Nc3 {[%clk 0:02:57.9]}
5... d6 {[%clk 0:02:59.5]} 6. e4 {[%clk 0:02:58]} 6... Nbd7 {[%clk 0:03:00.4]}
7. Nge2 {[%clk 0:02:58]} 7... e5 {[%clk 0:03:01.3]} 8. d5 {[%clk 0:02:58.2]}
8... Ne8 {[%clk 0:02:58.1]} 9. Be3 {[%clk 0:02:57.6]} 9... f5 {[%clk 0:02:46.1]}
10. exf5 {[%clk 0:02:56.6]} 10... gxf5 {[%clk 0:02:47]} 11. f4 {[%clk
0:02:56.9]} 11... Nef6 {[%clk 0:02:38.7]} 12. h3 {[%clk 0:02:55.5]} 12... Qe7
{[%clk 0:02:37]} 13. Qd2 {[%clk 0:02:55]} 13... e4 {[%clk 0:02:34.8]} 14. Nd4
{[%clk 0:02:51.4]} 14... Nc5 {[%clk 0:02:34.9]} 15. O-O-O {[%clk 0:02:44.7]}
15... Nd3+ {[%clk 0:02:29.4]} 16. Kb1 {[%clk 0:02:42.7]} 16... c5 {[%clk
0:02:29.9]} 17. dxc6 {[%clk 0:02:42]} 17... bxc6 {[%clk 0:02:30]} 18. Nxc6
{[%clk 0:02:37.8]} 18... Qc7 {[%clk 0:02:29.5]} 19. g4 {[%clk 0:01:58.2]} 19...
Be6 {[%clk 0:01:24.1]} 20. gxf5 {[%clk 0:01:51.8]} 20... Bxc4 {[%clk 0:01:23.1]}
21. Nxe4 {[%clk 0:01:40]} 21... Nxb2 {[%clk 0:00:45]} 22. Nxf6+ {[%clk
0:01:29.9]} 22... Bxf6 {[%clk 0:00:33.9]} 23. Rdg1 {[%clk 0:01:28.6]} 23... Kh8
{[%clk 0:00:19.7]} 24. Bd4 {[%clk 0:01:27.7]} 24... Nd3 {[%clk 0:00:08.2]} 25.
Qc3 {[%clk 0:01:20.9]} 25... Rab8+ {[%clk 0:00:06.4]} 26. Ka1 {[%clk 0:01:17.6]}
26... Qf7 {[%clk 0:00:01.7]} 27. Bf1 {[%clk 0:01:02.1]} 1-0

[Event "*** SCC Grand Prix: Titled Tuesday Blitz"]
[Site "Chess.com"]
[Date "2020.06.02"]
[Round "4"]
[White "I_Hit_18K_on_BS"]
[Black "VinzentSpitzl"]
[Result "0-1"]
[WhiteElo "2097"]
[BlackElo "2388"]
[TimeControl "180+1"]
[EndTime "10:38:54 PDT"]
[Termination "VinzentSpitzl won by resignation"]

1. e4 {[%clk 0:03:00.9]} 1... c6 {[%clk 0:02:58.4]} 2. d4 {[%clk 0:03:00.3]}
2... d5 {[%clk 0:02:59]} 3. e5 {[%clk 0:03:00.9]} 3... c5 {[%clk 0:02:59.3]} 4.
dxc5 {[%clk 0:03:00.2]} 4... e6 {[%clk 0:02:59.9]} 5. Nf3 {[%clk 0:02:56]} 5...
Bxc5 {[%clk 0:02:58.6]} 6. a3 {[%clk 0:02:56.5]} 6... Nc6 {[%clk 0:02:58]} 7. b4
{[%clk 0:02:55.3]} 7... Bb6 {[%clk 0:02:58.5]} 8. Bb2 {[%clk 0:02:55.2]} 8...
Nge7 {[%clk 0:02:59.1]} 9. Bd3 {[%clk 0:02:53.5]} 9... Ng6 {[%clk 0:02:59.4]}
10. Qd2 {[%clk 0:02:50.1]} 10... Qc7 {[%clk 0:02:54.1]} 11. Qg5 {[%clk 0:02:37]}
11... d4 {[%clk 0:02:38.8]} 12. O-O {[%clk 0:02:28.9]} 12... Ncxe5 {[%clk
0:02:34]} 13. Nxd4 {[%clk 0:02:19.7]} 13... Nxd3 {[%clk 0:02:27.5]} 14. cxd3
{[%clk 0:02:15.2]} 14... O-O {[%clk 0:02:19.6]} 15. h4 {[%clk 0:01:27.7]} 15...
Qf4 {[%clk 0:01:50.3]} 16. Nf3 {[%clk 0:00:55.9]} 16... h6 {[%clk 0:01:36.1]}
17. Qxf4 {[%clk 0:00:52]} 17... Nxf4 {[%clk 0:01:37]} 18. d4 {[%clk 0:00:50.9]}
18... Bd7 {[%clk 0:01:36.1]} 19. Nc3 {[%clk 0:00:48.4]} 19... Nd3 {[%clk
0:01:28.1]} 20. Rab1 {[%clk 0:00:40.8]} 20... Rac8 {[%clk 0:01:17.3]} 21. Ne4
{[%clk 0:00:34.5]} 21... Rc2 {[%clk 0:01:16.8]} 22. Nc5 {[%clk 0:00:16.6]} 22...
Bxc5 {[%clk 0:01:09.3]} 23. dxc5 {[%clk 0:00:16.5]} 23... Rxb2 {[%clk
0:00:55.1]} 24. Rbd1 {[%clk 0:00:15.6]} 24... Bb5 {[%clk 0:00:50.2]} 25. a4
{[%clk 0:00:10.1]} 25... Bc4 {[%clk 0:00:47.9]} 26. Nd2 {[%clk 0:00:09.8]} 26...
Bd5 {[%clk 0:00:47.5]} 27. Nf3 {[%clk 0:00:07.7]} 27... Nxb4 {[%clk 0:00:46.2]}
28. Ne5 {[%clk 0:00:06.3]} 28... Nc6 {[%clk 0:00:44.4]} 29. Nd7 {[%clk
0:00:06.1]} 29... Rd8 {[%clk 0:00:44.2]} 0-1

[Event "*** SCC Grand Prix: Titled Tuesday Blitz"]
[Site "Chess.com"]
[Date "2020.06.02"]
[Round "4"]
[White "abfchess"]
[Black "MarceloPlaya"]
[Result "1-0"]
[WhiteElo "2092"]
[BlackElo "2294"]
[TimeControl "180+1"]
[EndTime "10:38:54 PDT"]
[Termination "abfchess won on time"]

1. d4 {[%clk 0:03:00.9]} 1... e6 {[%clk 0:02:47.2]} 2. Nf3 {[%clk 0:03:00.2]}
2... Nf6 {[%clk 0:02:45.9]} 3. Bg5 {[%clk 0:02:56.3]} 3... d5 {[%clk 0:02:44.8]}
4. Nbd2 {[%clk 0:02:53.9]} 4... c5 {[%clk 0:02:44.9]} 5. e3 {[%clk 0:02:53.7]}
5... Nc6 {[%clk 0:02:44.1]} 6. c3 {[%clk 0:02:53.9]} 6... Be7 {[%clk 0:02:43.7]}
7. Bd3 {[%clk 0:02:53.9]} 7... O-O {[%clk 0:02:43.5]} 8. O-O {[%clk 0:02:53.8]}
8... h6 {[%clk 0:02:43.5]} 9. Bh4 {[%clk 0:02:53.4]} 9... b6 {[%clk 0:02:42.7]}
10. Ne5 {[%clk 0:02:53.6]} 10... Bb7 {[%clk 0:02:42.3]} 11. f4 {[%clk
0:02:53.2]} 11... Nd7 {[%clk 0:02:41.8]} 12. Bxe7 {[%clk 0:02:52.4]} 12... Qxe7
{[%clk 0:02:41.5]} 13. Qf3 {[%clk 0:02:52.3]} 13... Rfd8 {[%clk 0:02:29]} 14.
Qh3 {[%clk 0:02:44]} 14... f5 {[%clk 0:02:20.6]} 15. g4 {[%clk 0:02:42]} 15...
c4 {[%clk 0:02:05.8]} 16. Bc2 {[%clk 0:02:40]} 16... Ncxe5 {[%clk 0:01:59]} 17.
fxe5 {[%clk 0:02:35.9]} 17... Qg5 {[%clk 0:01:55.9]} 18. Rf4 {[%clk 0:02:11]}
18... Rf8 {[%clk 0:01:54.9]} 19. Kh1 {[%clk 0:01:55.3]} 19... Nxe5 {[%clk
0:01:34]} 20. gxf5 {[%clk 0:01:50.8]} 20... Nd3 {[%clk 0:01:23.3]} 21. Bxd3
{[%clk 0:01:43.3]} 21... cxd3 {[%clk 0:01:23.2]} 22. Rg1 {[%clk 0:01:43.3]}
22... Qe7 {[%clk 0:01:04.2]} 23. Qxh6 {[%clk 0:01:36.6]} 23... Rf6 {[%clk
0:00:55.4]} 24. Qh4 {[%clk 0:01:19.6]} 24... exf5 {[%clk 0:00:50.1]} 25. Rxf5
{[%clk 0:01:14.7]} 25... Raf8 {[%clk 0:00:38.3]} 26. Rfg5 {[%clk 0:00:43.7]}
26... R8f7 {[%clk 0:00:12.9]} 27. Rh5 {[%clk 0:00:42.4]} 1-0